bitfinex/quotes_SOLUSD_20240530
["timestamp","ask_amount","ask_price","bid_price","bid_amount"]
[1717047428717,2.1932,168.7,168.65,2.1938]
[1717047431805,8.6575,168.7,168.65,2.1938]
[1717047432004,8.6575,168.7,168.64,2.1939]
[1717047433131,2.1934,168.69,168.64,2.1939]
[1717047434018,6.4643,168.7,168.61,0.03688614]
[1717047434331,6.76,168.66,168.62,2.1942]
[1717047434511,2.1935,168.68,168.61,0.03688614]
[1717047434512,6.76,168.67,168.63,2.1941]
[1717047434822,6.76,168.67,168.62,2.1942]
[1717047434823,8.9536,168.67,168.62,2.1942]
[1717047436221,2.1936,168.67,168.62,2.1942]
[1717047436421,6.76,168.71,168.65,6.76]
[1717047436728,6.76,168.71,168.63,2.194]
[1717047436928,6.76,168.71,168.64,6.76]
[1717047437122,6.76,168.71,168.65,6.76]
[1717047437321,2.1932,168.7,168.65,8.9538]
[1717047438032,8.9531,168.71,168.65,8.9538]
[1717047439007,8.9531,168.71,168.66,2.1937]
[1717047439214,2.1929,168.72,168.67,6.76]
[1717047439427,2.1928,168.73,168.67,6.76]
[1717047439622,8.9528,168.73,168.68,2.1934]
[1717047440039,2.1928,168.73,168.67,8.9535]
[1717047440415,2.1929,168.72,168.67,8.9535]
[1717047441737,15.7143,168.76,168.68,6.76]
[1717047441943,2.1926,168.75,168.69,8.9532]
[1717047442116,2.1926,168.75,168.7,2.1932]
[1717047443141,2.1926,168.75,168.69,8.9533]
[1717047443452,2.1926,168.75,168.7,2.1932]
[1717047444121,2.1926,168.75,168.7,8.9532]
[1717047446739,2.1927,168.74,168.66,22.1373]
[1717047446944,2.1927,168.74,168.68,2.1934]
[1717047447445,2.1928,168.73,168.68,2.1934]
[1717047447817,4.3847,168.77,168.64,24.359]
[1717047447818,2.1931,168.71,168.64,24.359]
[1717047448021,4.3852,168.75,168.65,6.76]
[1717047448436,2.193,168.72,168.67,2.1936]
[1717047449017,2.193,168.72,168.66,2.1937]
[1717047450632,60.0,168.73,168.63,2.194]
[1717047450926,6.76,168.64,168.61,0.03688614]
[1717047451131,6.76,168.63,168.61,0.03688614]
[1717047452430,6.76,168.62,168.61,0.03688614]
[1717047453250,6.76,168.63,168.61,0.03688614]
[1717047453438,6.76,168.66,168.61,0.03688614]
[1717047453439,2.1939,168.65,168.61,0.03688614]
[1717047454762,2.194,168.64,168.61,0.03688614]
[1717047455664,6.76,168.66,168.61,0.03688614]
[1717047455665,2.1939,168.65,168.61,0.03688614]
[1717047456262,8.9539,168.65,168.61,0.03688614]
[1717047456431,2.1939,168.65,168.61,0.03688614]
[1717047456630,8.9539,168.65,168.61,0.03688614]
[1717047457156,2.1939,168.65,168.61,0.03688614]
[1717047458135,6.76,168.66,168.61,13.11028614]
[1717047458454,6.76,168.67,168.62,2.1942]
[1717047458757,8.9536,168.67,168.62,2.1942]
[1717047459128,2.1935,168.68,168.62,2.1942]
[1717047459323,6.76,168.67,168.62,8.5076]
[1717047459547,2.1935,168.68,168.62,15.2676]
[1717047460136,28.6208,168.71,168.63,2.194]
[1717047460137,2.1934,168.69,168.63,2.194]
[1717047460335,2.1935,168.68,168.63,2.194]
[1717047460536,2.1935,168.68,168.62,15.2676]
[1717047461754,2.1935,168.68,168.62,2.1942]
[1717047462754,60.0,168.7,168.61,0.03688614]
[1717047463151,2.1938,168.66,168.61,0.03688614]
[1717047464355,2.1939,168.65,168.61,0.03688614]
[1717047464571,8.9539,168.65,168.61,0.03688614]
[1717047467455,2.1938,168.66,168.61,6.39278614]
[1717047468366,2.1934,168.69,168.62,12.9125]
[1717047468536,2.1934,168.69,168.63,8.9541]
[1717047468734,8.9534,168.69,168.63,8.9541]
[1717047469243,6.76,168.68,168.63,2.1941]
[1717047469551,8.9535,168.68,168.63,8.6601]
[1717047471767,8.9533,168.69,168.63,8.9541]
[1717047472141,2.1933,168.69,168.63,8.9541]
[1717047472540,2.1935,168.68,168.63,8.9541]
[1717047472853,2.1935,168.68,168.64,6.4256]
[1717047473254,2.1934,168.69,168.64,6.4256]
[1717047473777,114.71505555,168.75,168.65,13.4262]
[1717047473952,8.9532,168.71,168.65,15.62]
[1717047474279,2.1932,168.7,168.65,6.6662]
[1717047474576,6.76,168.69,168.65,6.6662]
[1717047476563,2.1933,168.7,168.66,6.2675]
[1717047476770,8.9534,168.69,168.64,6.2675]
[1717047479076,6.76,168.68,168.64,6.2675]
[1717047480190,2.1934,168.69,168.64,8.4615]
[1717047480483,2.1934,168.69,168.64,6.2675]
[1717047480665,2.1934,168.69,168.64,8.4615]
[1717047480983,2.1932,168.7,168.64,8.4615]
[1717047481195,2.1931,168.71,168.65,2.1938]
[1717047481370,6.76,168.69,168.65,8.3973]
[1717047481786,2.1934,168.69,168.62,2.1941]
[1717047482088,2.1935,168.68,168.62,2.1941]
[1717047482390,2.1935,168.68,168.62,8.9541]
[1717047482692,2.1935,168.68,168.63,2.1941]
[1717047482878,2.1935,168.68,168.63,8.2965]
[1717047483789,2.1935,168.68,168.63,6.1024]
[1717047485792,2.1934,168.69,168.63,15.0565]
[1717047485985,2.1932,168.7,168.65,6.1616]
[1717047486790,70.9631,168.75,168.66,8.3553]
[1717047486989,70.9631,168.75,168.66,6.1616]
[1717047486990,2.1931,168.71,168.66,6.1616]
[1717047487592,4.3859,168.72,168.62,6.4835]
[1717047487776,2.1936,168.68,168.62,15.4377]
[1717047488200,6.76,168.67,168.63,6.1277]
[1717047488490,6.76,168.67,168.63,8.3218]
[1717047488668,8.9536,168.68,168.63,8.3218]
[1717047488869,2.1936,168.67,168.63,6.1277]
[1717047489301,8.9535,168.68,168.63,6.1277]
[1717047490110,8.9535,168.68,168.64,6.2031]
[1717047490393,8.9534,168.69,168.65,6.2031]
[1717047490692,2.1934,168.69,168.65,6.2031]
[1717047490897,2.1932,168.7,168.65,6.2031]
[1717047491272,4.3852,168.75,168.66,6.3995]
[1717047491477,2.1929,168.72,168.66,15.3532]
[1717047492102,2.1929,168.72,168.67,6.76]
[1717047492279,2.1929,168.72,168.66,8.9537]
[1717047492595,2.1929,168.72,168.67,6.2207]
[1717047493596,60.0,168.77,168.68,2.1934]
[1717047493799,6.76,168.72,168.68,6.5471]
[1717047494896,2.1928,168.73,168.68,6.5471]
[1717047495775,2.1928,168.73,168.68,8.7405]
[1717047497777,2.1928,168.73,168.69,6.2055]
[1717047498490,2.1927,168.74,168.69,6.2055]
[1717047498801,2.1927,168.74,168.69,8.5699]
[1717047500177,6.76,168.73,168.69,8.5699]
[1717047500382,2.1927,168.74,168.7,6.3743]
[1717047501295,2.1926,168.75,168.7,6.3743]
[1717047501496,2.1927,168.74,168.7,6.3743]
[1717047501888,2.1927,168.74,168.71,6.5099]
[1717047502188,2.1926,168.75,168.71,6.5099]
[1717047503698,120.87703443,168.81,168.72,6.5651]
[1717047503891,60.0,168.79,168.7,2.1931]
[1717047504075,60.0,168.79,168.69,2.1933]
[1717047504076,8.9528,168.74,168.69,2.1933]
[1717047504279,8.9528,168.74,168.68,15.5185]
[1717047504698,8.9528,168.74,168.69,13.2417]
[1717047505081,8.9528,168.74,168.69,15.435]
[1717047505282,2.1928,168.74,168.69,15.435]
[1717047505489,4.3844,168.78,168.69,15.435]
[1717047505490,2.1926,168.75,168.69,8.9533]
[1717047505798,2.1928,168.73,168.67,8.9536]
[1717047508586,2.1928,168.73,168.68,2.1935]
[1717047509283,2.1928,168.73,168.64,23.9362]
[1717047509284,60.0,168.75,168.66,2.1936]
[1717047509489,6.76,168.7,168.66,2.1936]
[1717047509803,6.76,168.69,168.64,8.7747]
[1717047510004,6.76,168.68,168.65,2.1938]
[1717047511309,6.76,168.69,168.65,2.1938]
[1717047511908,2.1932,168.7,168.61,0.03688614]
[1717047511909,6.76,168.66,168.64,2.1939]
[1717047512520,2.1937,168.67,168.61,2.23118614]
[1717047512986,2.1937,168.67,168.62,2.1942]
[1717047513514,2.1937,168.67,168.61,8.99118614]
[1717047514396,2.1937,168.67,168.62,8.9542]
[1717047514599,2.1937,168.67,168.62,6.76]
[1717047515410,2.1937,168.66,168.61,2.23118614]
[1717047515701,2.1937,168.66,168.61,6.79688614]
[1717047515909,2.1937,168.66,168.61,12.86298614]
[1717047516887,2.1937,168.66,168.61,15.05738614]
[1717047517313,2.1937,168.66,168.62,6.76]
[1717047517613,2.1937,168.66,168.61,15.05738614]
[1717047519411,2.1937,168.66,168.61,12.86298614]
[1717047521232,2.1937,168.66,168.61,6.10298614]
[1717047521417,2.1937,168.66,168.61,12.86298614]
[1717047521932,4.387,168.68,168.61,0.03688614]
[1717047522107,2.1941,168.64,168.61,0.03688614]
[1717047523728,2.1939,168.65,168.61,0.03688614]
[1717047528241,2.1938,168.66,168.61,13.41488614]
[1717047528541,8.9536,168.67,168.62,12.9892]
[1717047529128,2.1937,168.66,168.62,6.2292]
[1717047533044,2.1936,168.67,168.62,6.2292]
[1717047533630,2.1937,168.66,168.62,6.2292]
[1717047533922,2.1936,168.67,168.62,6.2292]
[1717047536722,8.9535,168.68,168.64,6.5258]
[1717047537846,2.1935,168.68,168.64,6.5258]
[1717047538046,8.9535,168.68,168.64,6.5258]
[1717047540250,8.9534,168.69,168.64,6.5258]
[1717047540624,2.1935,168.68,168.64,6.5258]
[1717047541942,2.1936,168.67,168.61,2.23118614]
[1717047542135,8.954,168.64,168.61,0.03688614]
[1717047542827,6.76,168.64,168.61,0.03688614]
[1717047543442,2.194,168.64,168.61,0.03688614]
[1717047546251,2.1939,168.65,168.61,0.03688614]
[1717047547165,4.3875,168.66,168.61,0.03688614]
[1717047547934,2.1941,168.64,168.61,0.03688614]
[1717047548654,2.1939,168.65,168.61,0.03688614]
[1717047555460,2.1939,168.65,168.61,6.53608614]
[1717047555770,8.9538,168.66,168.62,6.4992]
[1717047555942,2.1938,168.66,168.62,6.4992]
[1717047556142,2.1938,168.65,168.62,6.4992]
[1717047556544,2.1938,168.65,168.61,0.03688614]
[1717047556750,6.76,168.67,168.61,0.03688614]
[1717047557048,2.1941,168.64,168.61,0.03688614]
[1717047560071,2.1939,168.65,168.61,0.03688614]
[1717047562077,2.194,168.64,168.61,0.03688614]
[1717047564184,2.1939,168.65,168.61,0.03688614]
[1717047568477,6.76,168.64,168.61,0.03688614]
[1717047571775,2.1941,168.63,168.61,0.03688614]
[1717047573078,2.194,168.64,168.61,0.03688614]
[1717047581992,2.1938,168.66,168.62,6.5147]
[1717047584898,2.1938,168.66,168.61,8.99118614]
[1717047585080,8.9536,168.67,168.63,6.1123]
[1717047585284,2.1936,168.67,168.63,6.1123]
[1717047585782,2.1935,168.68,168.64,6.274]
[1717047586787,2.1938,168.66,168.61,6.62838614]
[1717047587079,2.1938,168.66,168.62,6.5321]
[1717047587300,8.9538,168.66,168.62,6.5321]
[1717047587613,2.1938,168.66,168.62,6.5321]
[1717047591902,4.387,168.68,168.61,0.03688614]
[1717047592084,2.1939,168.65,168.61,0.03688614]
[1717047600318,2.1938,168.66,168.61,6.42638614]
[1717047600617,8.9538,168.66,168.61,6.42638614]
[1717047600811,2.1938,168.65,168.61,6.42638614]
[1717047605325,8.9537,168.66,168.61,6.42638614]
[1717047605824,2.1939,168.65,168.61,6.42638614]
[1717047606728,8.9539,168.65,168.61,6.42638614]
[1717047611327,2.1939,168.65,168.61,6.42638614]
[1717047611826,2.1939,168.65,168.61,0.03688614]
[1717047612333,49.387,168.68,168.61,6.52218614]
[1717047612522,2.194,168.64,168.61,6.52218614]
[1717047612916,2.1939,168.65,168.61,6.52218614]
[1717047614208,8.9539,168.65,168.61,6.52218614]
[1717047616013,2.1939,168.65,168.62,6.4356]
[1717047620021,2.1938,168.66,168.63,6.4015]
[1717047621231,6.76,168.69,168.63,6.76]
[1717047621435,13.52,168.69,168.63,6.76]
[1717047621730,13.52,168.69,168.61,6.07488614]
[1717047621934,6.76,168.69,168.61,12.83488614]
[1717047622124,2.1936,168.67,168.61,12.83488614]
[1717047622436,2.1936,168.67,168.62,2.1942]
[1717047622625,2.1936,168.67,168.63,6.3721]
[1717047622826,2.1936,168.67,168.62,8.9542]
[1717047623036,2.1936,168.67,168.64,6.3721]
[1717047623343,2.1936,168.67,168.64,6.2382]
[1717047623516,2.1936,168.67,168.63,6.2382]
[1717047623714,2.1936,168.67,168.64,6.2382]
[1717047624031,2.1935,168.68,168.64,6.2382]
[1717047625141,15.7134,168.69,168.65,6.3644]
[1717047626133,8.9534,168.69,168.65,6.3644]
[1717047626629,2.1935,168.68,168.65,6.3644]
[1717047627128,1.6935,168.68,168.65,6.3644]
[1717047629235,1.6935,168.68,168.63,2.1941]
[1717047629415,1.6935,168.68,168.63,15.1872]
[1717047630631,1.6935,168.68,168.64,6.5695]
[1717047631819,2.1939,168.65,168.61,0.03688614]
[1717047632026,2.194,168.64,168.61,0.03688614]
[1717047632237,8.954,168.64,168.61,0.03688614]
[1717047632415,8.9539,168.65,168.61,0.03688614]
[1717047642554,6.76,168.62,168.61,0.03688614]
[1717047642851,8.9542,168.62,168.61,0.03688614]
[1717047645327,2.1942,168.62,168.61,0.03688614]
[1717047646833,83.6562,168.62,168.61,0.03688614]
[1717047647026,120.0656,168.62,168.61,0.03688614]
[1717047647928,113.9542,168.62,168.61,0.03688614]
[1717047649253,118.3427,168.62,168.61,0.03688614]
[1717047650148,124.9255,168.62,168.61,0.03688614]
[1717047653553,127.303601,168.62,168.61,0.03688614]
[1717047654263,136.080701,168.62,168.61,0.03688614]
[1717047655046,142.424701,168.62,168.61,0.03688614]
[1717047657147,136.080701,168.62,168.61,0.03688614]
[1717047660461,31.080701,168.62,168.61,0.03688614]
[1717047660671,91.080701,168.62,168.61,0.03688614]
[1717047661771,136.080701,168.62,168.61,0.03688614]
[1717047662067,157.540001,168.62,168.61,0.03688614]
[1717047665772,177.540001,168.62,168.61,8.614e-05]
[1717047666868,272.52145655,168.62,168.61,8.614e-05]
[1717047668171,206.06215655,168.62,168.61,8.614e-05]
[1717047669466,251.06215655,168.62,168.61,8.614e-05]
[1717047670883,206.06215655,168.62,168.61,8.614e-05]
[1717047671774,2.1951,168.55,168.54,0.3685608]
[1717047671978,8.9551,168.55,168.54,0.3685608]
[1717047672154,53.9551,168.55,168.54,0.3685608]
[1717047672962,47.1951,168.55,168.54,0.3685608]
[1717047673162,2.1951,168.55,168.54,0.3685608]
[1717047673688,53.9551,168.55,168.54,0.3685608]
[1717047673859,8.9551,168.55,168.54,0.3685608]
[1717047674888,2.1951,168.55,168.54,0.3685608]
[1717047675254,2.1951,168.55,168.54,6.6035608]
[1717047675577,11.1502,168.55,168.54,6.6035608]
[1717047675753,2.1951,168.55,168.54,6.6035608]
[1717047679377,2.195,168.57,168.56,6.0156]
[1717047680481,8.955,168.57,168.56,6.0156]
[1717047680986,2.1951,168.56,168.54,6.3841608]
[1717047681774,2.1951,168.55,168.54,0.3685608]
[1717047681956,8.9551,168.55,168.54,0.3685608]
[1717047682379,2.1951,168.55,168.54,0.3685608]
[1717047682558,2.1951,168.56,168.54,6.9364608]
[1717047683864,2.1951,168.56,168.55,6.5619]
[1717047684183,2.1949,168.57,168.55,6.5619]
[1717047684485,8.9549,168.57,168.55,6.5619]
[1717047685876,2.1949,168.57,168.55,6.5619]
[1717047686179,2.1949,168.57,168.55,6.2359]
[1717047686369,2.1949,168.57,168.56,6.2359]
[1717047686874,2.1951,168.55,168.54,0.3685608]
[1717047692001,8.9551,168.55,168.54,0.3685608]
[1717047696078,13.3454,168.55,168.54,0.3685608]
[1717047696684,6.5854,168.55,168.54,0.3685608]
[1717047696891,67.1261,168.55,168.54,0.3685608]
[1717047697081,73.7116,168.55,168.54,0.3685608]
[1717047698159,67.1261,168.55,168.54,0.3685608]
[1717047699585,60.3661,168.55,168.54,0.3685608]
[1717047700282,67.1261,168.55,168.54,0.3685608]
[1717047700592,66.9516,168.55,168.54,0.3685608]
[1717047701189,74.511906,168.55,168.54,0.3685608]
[1717047701992,81.271906,168.55,168.54,0.3685608]
[1717047704114,74.511906,168.55,168.54,0.3685608]
[1717047707016,81.271906,168.55,168.54,0.3685608]
[1717047709015,74.511906,168.55,168.54,0.3685608]
[1717047709226,81.271906,168.55,168.54,0.3685608]
[1717047709419,36.271906,168.55,168.54,0.3685608]
[1717047709627,29.511906,168.55,168.54,0.3685608]
[1717047710622,29.686406,168.55,168.54,0.3685608]
[1717047713223,74.686406,168.55,168.54,0.3685608]
[1717047714111,67.926406,168.55,168.54,0.3685608]
[1717047716722,74.511906,168.55,168.54,0.3685608]
[1717047719707,81.271906,168.55,168.54,0.3685608]
[1717047719910,103.016506,168.55,168.54,0.3685608]
[1717047720119,101.271906,168.55,168.54,6.08e-05]
[1717047720308,2.1961,168.48,168.47,0.8003058]
[1717047720724,2.1961,168.48,168.47,7.0178058]
[1717047721924,7.017805,168.49,168.48,23.0101]
[1717047722107,2.1957,168.51,168.5,6.3963]
[1717047722313,8.9556,168.52,168.5,6.3963]
[1717047725131,2.1957,168.51,168.5,6.3963]
[1717047725335,8.9557,168.51,168.5,6.3963]
[1717047726340,2.1956,168.52,168.5,6.3963]
[1717047729637,2.1957,168.51,168.5,6.3963]
[1717047729844,2.1955,168.52,168.48,16.6138]
[1717047730135,2.1952,168.55,168.51,6.76]
[1717047730544,2.1952,168.55,168.54,6.4728]
[1717047730744,15.7151,168.56,168.54,6.4728]
[1717047730952,8.9551,168.56,168.54,6.4728]
[1717047731163,2.1951,168.56,168.54,6.4728]
[1717047732437,2.1951,168.56,168.52,6.0847]
[1717047732660,79.7513,168.59,168.52,6.0847]
[1717047732661,8.9552,168.55,168.52,6.0847]
[1717047732948,8.9552,168.55,168.49,25.5195]
[1717047732949,6.76,168.55,168.51,6.0847]
[1717047733161,6.76,168.55,168.53,6.37]
[1717047733346,2.1951,168.56,168.53,6.37]
[1717047735466,2.1949,168.57,168.52,13.2901]
[1717047735663,2.1949,168.57,168.54,6.5301]
[1717047735840,15.362,168.59,168.55,6.4229]
[1717047735841,2.1947,168.59,168.55,6.4229]
[1717047736043,2.1947,168.59,168.56,6.4229]
[1717047736561,8.9547,168.59,168.56,6.4229]
[1717047737346,8.9547,168.59,168.54,6.76]
[1717047737539,8.9547,168.59,168.54,22.5742]
[1717047737851,8.9547,168.59,168.56,6.1319]
[1717047738051,15.7147,168.59,168.56,6.1319]
[1717047739353,8.9547,168.59,168.56,6.2405]
[1717047739655,8.9547,168.59,168.57,6.2405]
[1717047740482,2.1947,168.59,168.57,6.2405]
[1717047746558,2.1947,168.59,168.55,6.4725]
[1717047747944,2.1947,168.59,168.55,6.76]
[1717047748161,2.1945,168.6,168.56,12.877]
[1717047748361,2.1944,168.61,168.56,12.877]
[1717047749353,2.1945,168.6,168.56,12.877]
[1717047749553,6.5814,168.66,168.58,6.76]
[1717047749751,2.1942,168.63,168.58,6.76]
[1717047749959,4.3872,168.67,168.59,13.3564]
[1717047750144,2.1942,168.63,168.59,6.5964]
[1717047750472,4.3872,168.67,168.6,6.6444]
[1717047750473,2.194,168.64,168.6,6.6444]
[1717047750651,8.7753,168.65,168.62,6.6444]
[1717047751173,8.7753,168.65,168.62,13.4044]
[1717047751174,6.5814,168.65,168.62,13.4044]
[1717047751360,2.1937,168.66,168.62,13.4044]
[1717047752250,2.1937,168.66,168.62,6.6444]
[1717047752572,8.954,168.65,168.6,6.76]
[1717047752955,8.954,168.65,168.6,13.4044]
[1717047753572,2.1937,168.66,168.61,6.76]
[1717047753778,2.1937,168.66,168.61,13.1237]
[1717047754464,2.1939,168.65,168.61,6.3637]
[1717047754671,2.1939,168.65,168.61,13.1237]
[1717047755373,8.9537,168.67,168.61,13.1237]
[1717047755688,2.1938,168.66,168.61,13.1237]
[1717047756793,2.1938,168.66,168.62,6.6508]
[1717047757289,2.1939,168.65,168.62,6.6508]
[1717047759572,17.75,168.69,168.62,6.6508]
[1717047759573,2.1937,168.67,168.62,6.6508]
[1717047759773,6.76,168.66,168.62,6.6508]
[1717047759975,2.1937,168.66,168.63,6.0583]
[1717047764494,17.75,168.69,168.63,6.0583]
[1717047764693,8.9537,168.67,168.63,6.0583]
[1717047764884,2.1937,168.66,168.63,6.0583]
[1717047765393,17.75,168.7,168.65,6.76]
[1717047765563,17.75,168.7,168.63,17.75]
[1717047765564,19.9432,168.7,168.64,2.1939]
[1717047765867,19.9432,168.7,168.66,6.76]
[1717047766074,19.9432,168.7,168.66,13.1589]
[1717047767292,19.9432,168.7,168.66,6.3989]
[1717047767486,19.9432,168.7,168.66,13.1589]
[1717047770387,2.1932,168.7,168.67,6.2043]
[1717047771184,2.1931,168.71,168.67,6.2043]
[1717047772387,2.1931,168.71,168.67,12.9643]
[1717047772570,2.1929,168.72,168.68,6.2889]
[1717047772778,2.1929,168.72,168.68,13.0489]
[1717047773492,2.1929,168.72,168.68,6.2889]
[1717047774096,2.1928,168.73,168.68,13.0489]
[1717047774394,2.1928,168.74,168.69,6.76]
[1717047774590,2.1928,168.74,168.69,12.7934]
[1717047774971,2.1928,168.73,168.69,12.7934]
[1717047775268,2.1928,168.73,168.7,6.0334]
[1717047775670,2.1933,168.7,168.66,6.0704]
[1717047776001,8.9533,168.69,168.64,6.0704]
[1717047776200,4.3857,168.73,168.58,24.3635]
[1717047776201,2.1936,168.67,168.58,24.3635]
[1717047776401,2.1934,168.69,168.62,2.1941]
[1717047776591,4.3863,168.71,168.63,6.76]
[1717047776592,2.1935,168.68,168.63,6.76]
[1717047776901,2.1935,168.68,168.64,12.8304]
[1717047777474,2.1935,168.68,168.64,6.0704]
[1717047777679,2.1935,168.68,168.64,12.8304]
[1717047777891,2.1933,168.69,168.65,6.0704]
[1717047779704,2.1932,168.7,168.65,6.0704]
[1717047779918,2.1932,168.7,168.65,6.1891]
[1717047780402,2.1932,168.7,168.65,12.9491]
[1717047780601,2.1931,168.71,168.66,12.8178]
[1717047780801,2.1931,168.71,168.67,12.8178]
[1717047781400,2.1929,168.73,168.67,8.8534]
[1717047781607,2.1929,168.73,168.69,13.4199]
[1717047781902,2.1927,168.74,168.69,13.4199]
[1717047783187,2.1927,168.74,168.7,6.5555]
[1717047783406,2.1928,168.73,168.7,6.5555]
[1717047785292,2.1929,168.72,168.67,6.76]
[1717047785617,2.1929,168.72,168.68,6.3333]
[1717047786514,2.1931,168.71,168.68,6.3333]
[1717047787011,2.193,168.72,168.68,6.3333]
[1717047789090,8.953,168.72,168.68,6.3333]
[1717047789890,6.76,168.72,168.68,6.3333]
[1717047790089,2.1928,168.73,168.69,6.2702]
[1717047791194,30.9056,168.77,168.69,6.2702]
[1717047791195,2.1927,168.74,168.69,6.2702]
[1717047791401,2.1927,168.74,168.69,13.0302]
[1717047792206,2.1927,168.74,168.7,6.1205]
[1717047792602,2.1922,168.78,168.72,6.76]
[1717047792813,8.9522,168.78,168.73,6.76]
[1717047793012,2.1923,168.77,168.73,6.76]
[1717047793400,2.1923,168.77,168.72,6.76]
[1717047793806,2.1923,168.77,168.71,8.8409]
[1717047793807,6.76,168.76,168.71,6.6479]
[1717047794213,2.1923,168.77,168.71,6.6479]
[1717047795429,2.1923,168.77,168.71,8.8409]
[1717047795629,6.76,168.77,168.72,2.1929]
[1717047795928,23.91897888,168.81,168.72,2.1929]
[1717047795929,2.1921,168.79,168.72,8.9529]
[1717047796122,8.9521,168.79,168.73,6.76]
[1717047796301,2.1922,168.78,168.73,6.76]
[1717047796501,2.1922,168.78,168.72,8.9529]
[1717047797005,23.91897888,168.81,168.71,8.8409]
[1717047797006,2.1923,168.77,168.71,8.8409]
[1717047797202,2.1923,168.77,168.71,15.6009]
[1717047797925,2.1922,168.78,168.71,15.6009]
[1717047798322,6.16897888,168.81,168.72,2.1929]
[1717047799117,2.1921,168.79,168.72,2.1929]
[1717047800829,6.76,168.76,168.71,8.8409]
[1717047801027,6.76,168.75,168.71,8.2949]
[1717047803029,6.76,168.74,168.67,6.2605]
[1717047803235,6.76,168.73,168.69,6.4334]
[1717047803603,6.76,168.73,168.69,8.6267]
[1717047805110,2.1926,168.75,168.7,6.6228]
[1717047805435,2.1925,168.76,168.7,8.9531]
[1717047805635,2.1925,168.76,168.7,2.1931]
[1717047805932,2.1925,168.76,168.7,8.9531]
[1717047806539,2.1925,168.76,168.7,2.1931]
[1717047809039,2.1925,168.75,168.69,15.5761]
[1717047809212,6.76,168.74,168.65,6.464]
[1717047809419,4.385,168.76,168.66,2.1937]
[1717047809648,45.0,168.75,168.66,2.1937]
[1717047810317,4.385,168.76,168.67,2.1935]
[1717047810520,2.1928,168.73,168.67,2.1935]
[1717047810720,2.1928,168.73,168.68,2.1934]
[1717047811355,2.1928,168.73,168.67,2.1936]
[1717047813019,2.1928,168.73,168.68,2.1935]
[1717047814248,2.1928,168.73,168.68,6.6281]
[1717047814437,2.1928,168.73,168.67,2.1935]
[1717047814631,2.1929,168.72,168.66,2.1937]
[1717047817863,2.1931,168.71,168.65,19.9438]
[1717047818164,2.193,168.72,168.65,19.9438]
[1717047818329,2.193,168.72,168.66,2.1937]
[1717047818734,6.76,168.68,168.64,6.6281]
[1717047819152,6.76,168.72,168.63,2.1941]
[1717047819356,6.76,168.72,168.62,2.1942]
[1717047819357,2.1935,168.68,168.62,2.1942]
[1717047820945,2.1936,168.67,168.61,2.1943]
[1717047829265,60.0,168.69,168.55,37.1432]
[1717047829472,45.0,168.68,168.59,2.1945]
[1717047829963,2.1939,168.65,168.59,2.1945]
[1717047831679,2.1938,168.66,168.6,2.1945]
[1717047832938,2.1939,168.65,168.59,2.1946]
[1717047833567,6.5817,168.65,168.55,6.2226]
[1717047833762,88.7745,168.67,168.57,2.1948]
[1717047833763,4.3875,168.66,168.57,2.1948]
[1717047833950,6.76,168.61,168.57,2.1948]
[1717047834155,2.1942,168.62,168.56,2.195]
[1717047834556,2.1942,168.62,168.57,2.1949]
[1717047834765,6.76,168.61,168.55,6.2226]
[1717047834945,2.1945,168.61,168.55,15.1776]
[1717047835145,2.1945,168.61,168.56,2.195]